{"text_format":"3","workbook":"xlsx","n_sheets":2,"sheets":["Učiteljev seznam"," Podatki seznama"],"not_rendered":{"defined_names":6},"read":"whole","date_system":"1900"}

{"sheet":"Učiteljev seznam","index":0,"n_rows":10,"n_cols":10,"rows_kept":10,"merged":[[0,1,0,2],[0,4,0,8],[2,9,6,9]]}
[null,"Učiteljev seznam",null,"Podatki seznama","V tej celici je barvna legenda za stanje: Ni začeto ima navaden slog, V teku je R = 91 G = 133 B = 49, Rok danes je R = 118 G = 88 B = 0, V čakanju je R = 109 G = 66 B = 111, Dokončano je prečrtano, Preklicano je R = 191 G = 191 B = 191, Zamuja pa je R = 191 G = 33 B = 28."]
[null,"ELEMENT","KATEGORIJA","DATUM ZAČETKA","ROK","ŠTEVILO PREOSTALIH DNI","STANJE","OPOMBE"]
[null,"Počisti predale","Pisarniške",{"$f":"DATE(YEAR(TODAY()),MONTH(TODAY())-1,6)","v":"2018-04-06"},{"$f":"DATE(YEAR(TODAY()),MONTH(TODAY())-1,16)","v":"2018-04-16"},{"$f":"IFERROR(IF(COUNT(Seznam[[#This Row],[DATUM ZAČETKA]]:Seznam[[#This Row],[ROK]])<>2,\"\",IF(OR(Seznam[[#This Row],[STANJE]]=\"Dokončano\",Seznam[[#This Row],[STANJE]]=\"Preklicano\",Seznam[[#This Row],[STANJE]]=\"V čakanju\"),\"\",Seznam[[#This Row],[ROK]]-TODAY())),\"\")","v":""},"Dokončano",null,null,"V tej celici je razčlenjevalnik stanja. Če želite filtrirati seznam glede na stanje, v razčlenjevalniku izberite stanje. Pritisnite in pridržite tipko CTRL, da izberete več možnosti."]
[null,"Naroči nalepke","potrebščine",{"$f":"DATE(YEAR(TODAY()),MONTH(TODAY())-1,11)","v":"2018-04-11"},{"$f":"DATE(YEAR(TODAY()),MONTH(TODAY())-1,21)","v":"2018-04-21"},{"$f":"IFERROR(IF(COUNT(Seznam[[#This Row],[DATUM ZAČETKA]]:Seznam[[#This Row],[ROK]])<>2,\"\",IF(OR(Seznam[[#This Row],[STANJE]]=\"Dokončano\",Seznam[[#This Row],[STANJE]]=\"Preklicano\",Seznam[[#This Row],[STANJE]]=\"V čakanju\"),\"\",Seznam[[#This Row],[ROK]]-TODAY())),\"\")","v":""},"Dokončano"]
[null,"Tla so oprana in povoskana","Druge",{"$f":"DATE(YEAR(TODAY()),MONTH(TODAY()-1),DAY(TODAY())-25)","v":"2018-04-15"},{"$f":"DATE(YEAR(TODAY()),MONTH(TODAY())-1,26)","v":"2018-04-26"},{"$f":"IFERROR(IF(COUNT(Seznam[[#This Row],[DATUM ZAČETKA]]:Seznam[[#This Row],[ROK]])<>2,\"\",IF(OR(Seznam[[#This Row],[STANJE]]=\"Dokončano\",Seznam[[#This Row],[STANJE]]=\"Preklicano\",Seznam[[#This Row],[STANJE]]=\"V čakanju\"),\"\",Seznam[[#This Row],[ROK]]-TODAY())),\"\")","v":""},"Dokončano"]
[null,"Nalepke z imeni so ustvarjene","potrebščine",{"$f":"DATE(YEAR(TODAY()),MONTH(TODAY())-1,21)","v":"2018-04-21"},{"$f":"DATE(YEAR(TODAY()),MONTH(TODAY())-1,1)","v":"2018-04-01"},{"$f":"IFERROR(IF(COUNT(Seznam[[#This Row],[DATUM ZAČETKA]]:Seznam[[#This Row],[ROK]])<>2,\"\",IF(OR(Seznam[[#This Row],[STANJE]]=\"Dokončano\",Seznam[[#This Row],[STANJE]]=\"Preklicano\",Seznam[[#This Row],[STANJE]]=\"V čakanju\"),\"\",Seznam[[#This Row],[ROK]]-TODAY())),\"\")","v":""},"V čakanju"]
[null,"Oceni četrtletne pisne teste","Ocene",{"$f":"DATE(YEAR(TODAY()),MONTH(TODAY())-1,26)","v":"2018-04-26"},{"$f":"TODAY()-5","v":"2018-05-05"},{"$f":"IFERROR(IF(COUNT(Seznam[[#This Row],[DATUM ZAČETKA]]:Seznam[[#This Row],[ROK]])<>2,\"\",IF(OR(Seznam[[#This Row],[STANJE]]=\"Dokončano\",Seznam[[#This Row],[STANJE]]=\"Preklicano\",Seznam[[#This Row],[STANJE]]=\"V čakanju\"),\"\",Seznam[[#This Row],[ROK]]-TODAY())),\"\")","v":-5},"Zamuja"]
[null,"Pošlji opomnik za dovoljenja","Telefonski klici",{"$f":"DATE(YEAR(TODAY()),MONTH(TODAY()),1)","v":"2018-05-01"},{"$f":"TODAY()","v":"2018-05-10"},{"$f":"IFERROR(IF(COUNT(Seznam[[#This Row],[DATUM ZAČETKA]]:Seznam[[#This Row],[ROK]])<>2,\"\",IF(OR(Seznam[[#This Row],[STANJE]]=\"Dokončano\",Seznam[[#This Row],[STANJE]]=\"Preklicano\",Seznam[[#This Row],[STANJE]]=\"V čakanju\"),\"\",Seznam[[#This Row],[ROK]]-TODAY())),\"\")","v":""},"Preklicano"]
[null,"Oceni govorne vaje","Pisarniške",{"$f":"DATE(YEAR(TODAY()),MONTH(TODAY()),7)","v":"2018-05-07"},{"$f":"DATE(YEAR(TODAY()),MONTH(TODAY()),17)","v":"2018-05-17"},{"$f":"IFERROR(IF(COUNT(Seznam[[#This Row],[DATUM ZAČETKA]]:Seznam[[#This Row],[ROK]])<>2,\"\",IF(OR(Seznam[[#This Row],[STANJE]]=\"Dokončano\",Seznam[[#This Row],[STANJE]]=\"Preklicano\",Seznam[[#This Row],[STANJE]]=\"V čakanju\"),\"\",Seznam[[#This Row],[ROK]]-TODAY())),\"\")","v":7},"V teku"]
[null,"Ošili svinčnike","potrebščine",{"$f":"DATE(YEAR(TODAY()),MONTH(TODAY()),11)","v":"2018-05-11"},{"$f":"DATE(YEAR(TODAY()),MONTH(TODAY()),10)","v":"2018-05-10"},{"$f":"IFERROR(IF(COUNT(Seznam[[#This Row],[DATUM ZAČETKA]]:Seznam[[#This Row],[ROK]])<>2,\"\",IF(OR(Seznam[[#This Row],[STANJE]]=\"Dokončano\",Seznam[[#This Row],[STANJE]]=\"Preklicano\",Seznam[[#This Row],[STANJE]]=\"V čakanju\"),\"\",Seznam[[#This Row],[ROK]]-TODAY())),\"\")","v":0},"V teku"]

{"sheet":" Podatki seznama","index":1,"n_rows":13,"n_cols":3,"rows_kept":13}
[null,"Podatki seznama","Učiteljev seznam"]
[null,"Kategorija"]
[null,"Pisarniške"]
[null,"potrebščine"]
[null,"Kaj je treba kupiti"]
[null,"Telefonski klici"]
[null,"Nove zamisli"]
[null,"Ocene"]
[null,"Skupina"]
[null,"Posegi"]
[null,"Računalnik"]
[null,"Osebno"]
[null,"Druge"]